[Event "WYCC 2018 G18"]
[Site "Halkidiki"]
[Date "2018.10.22"]
[Round "4"]
[White "Janiashvili, Mariami"]
[Black "Nguyen, Thi Minh Thu"]
[Result "1-0"]
[ECO "A40"]
[WhiteElo "2081"]
[BlackElo "1849"]
[Annotator "NA"]
[PlyCount "111"]
[EventDate "2018.10.20"]
[EventType "swiss"]
[EventCountry "GRE"]
[SourceTitle "playchess.com"]
[Source "ChessBase"]
[SourceQuality "1"]
[TimeControl "40/5400+30:1800+30"]

1. d4 {[%emt 0:00:00]} e6 {[%emt 0:00:00]} 2. Nf3 {[%emt 0:00:00]} c5 {[%emt 0:00:14]} 3. g3 {[%emt 0:01:18]} b6 {[%emt 0:01:50]} 4. Bg2 {[%emt 0:00:34]} Bb7 {[%emt 0:00:08]} 5. O-O {[%emt 0:01:33]} Nf6 {[%emt 0:01:10]} 6. e3 {[%emt 0:09:45]} Be7 {[%emt 0:01:45]} 7. c4 {[%emt 0:00:13]} O-O {[%emt 0:00:26]} 8. Nc3 {[%emt 0:00:40]} d5 {[%emt 0:00:43]} 9. cxd5 {[%emt 0:01:34]} Nxd5 {[%emt 0:00:50]} 10. Nxd5 {[%emt 0:00:54] A30: Symmetrical English: Double Fianchetto and Hedgehog} exd5 $146 {[%emt 0:00:40]} ({Predecessor:} 10... Bxd5 11. dxc5 Bxc5 12. Bd2 Nd7 13. Bc3 Qc7 14. Qc2 Be7 15. Rac1 Qb7 16. Rfd1 Nc5 17. Qe2 Rac8 18. Ne1 Bxg2 19. Nxg2 Ne4 20. Bd4 Rxc1 21. Rxc1 Rc8 22. Rxc8+ Qxc8 23. Ne1 Bf6 {½-½ (23) Bidkov,A (2132)-Kruglyakov,P (2289) Kiev 2007}) 11. dxc5 {[%emt 0:04:27]} bxc5 {[%emt 0:00:20]} 12. Bd2 {[%emt 0:02:03]} Bf6 {[%emt 0:06:32]} 13. Qc2 {[%emt 0:01:49]} Qb6 {[%emt 0:00:46]} 14. Rac1 {[%emt 0:02:02]} Na6 {[%emt 0:00:35]} 15. Bc3 {[%emt 0:01:44]} d4 {[%emt 0:02:06]} 16. Bd2 {[%emt 0:04:39]} Rad8 {[%emt 0:06:28]} 17. Rfd1 {[%emt 0:13:34]} d3 {[%emt 0:03:50]} 18. Qa4 {[%emt 0:01:55]} Bc6 {[%emt 0:02:29]} 19. Qa5 {[%emt 0:03:57]} Bxb2 {[%emt 0:08:09]} 20. Qxb6 {[%emt 0:17:43]} axb6 {[%emt 0:00:09]} 21. Rb1 {[%emt 0:00:02]} Ba4 {[%emt 0:01:07]} 22. Rf1 {[%emt 0:00:29]} Ba3 {[%emt 0:02:16]} 23. Rxb6 {[%emt 0:00:21]} Nb4 {[%emt 0:00:06]} 24. Ne5 {[%emt 0:01:23]} Rb8 {[%emt 0:04:00]} 25. Rxb8 {[%emt 0:06:25]} Rxb8 {[%emt 0:00:09]} 26. Nc4 {[%emt 0:00:35]} Nc2 {[%emt 0:00:09]} 27. Be4 {[%emt 0:00:10]} Bb5 {[%emt 0:09:37]} 28. Bxd3 {[%emt 0:05:04]} Rd8 {[%emt 0:00:21]} 29. Rb1 {[%emt 0:02:03]} Bb4 {[%emt 0:05:35]} 30. Bxc2 {[%emt 0:02:06]} Bxc4 {[%emt 0:00:09]} 31. Bxb4 {[%emt 0:02:01]} cxb4 {[%emt 0:00:06]} 32. Rxb4 {[%emt 0:00:04]} Bxa2 {[%emt 0:00:08]} 33. Bb3 {[%emt 0:00:14]} Bxb3 {[%emt 0:00:22]} 34. Rxb3 {[%emt 0:00:02]} g6 {[%emt 0:00:11]} 35. Rb7 {[%emt 0:00:08]} Kg7 $16 {[%emt 0:00:25]} 36. Kg2 {[%emt 0:00:25]} Rd6 {[%emt 0:00:19]} 37. g4 {[%emt 0:00:29]} g5 {[%emt 0:00:50]} 38. Kg3 {[%emt 0:00:29]} Kg6 {[%emt 0:00:47]} 39. h4 {[%emt 0:01:02]} gxh4+ {[%emt 0:01:48]} 40. Kxh4 {[%emt 0:00:00]} h6 {[%emt 0:00:00]} 41. Kg3 {[%emt 0:04:19]} f6 {[%emt 0:04:05]} 42. Rb5 {[%emt 0:00:34]} Re6 {[%emt 0:00:45]} 43. Kf4 {[%emt 0:00:21]} Ra6 {[%emt 0:00:07]} 44. e4 {[%emt 0:00:48]} Ra2 {[%emt 0:01:10]} 45. Ke3 {[%emt 0:00:43]} Ra3+ {[%emt 0:00:14]} 46. Kf4 {[%emt 0:00:57]} Ra2 {[%emt 0:00:06]} 47. f3 {[%emt 0:01:16]} Ra4 48. Rb6 Ra5 {[%emt 0:01:57]} 49. Rd6 {[%emt 0:01:48]} Ra4 50. Kg3 Ra5 {[%emt 0:02:32]} 51. Rd5 {[%emt 0:02:14]} Ra7 52. e5 {[%emt 0:00:58]} h5 {[%emt 0:04:01]} 53. Rd6 {[%emt 0:04:54]} hxg4 {[%emt 0:04:17]} 54. Rxf6+ {[%emt 0:00:12]} Kg5 {[%emt 0:00:55]} 55. f4+ {[%emt 0:01:55]} Kh5 {[%emt 0:00:06]} 56. Rf5+ {[%emt 0:00:11]} 1-0

[Event "WYCC 2018 G18"]
[Site "Halkidiki"]
[Date "2018.10.22"]
[Round "4"]
[White "Vanduyfhuys, Daria"]
[Black "Miller, Rachel"]
[Result "0-1"]
[ECO "A57"]
[WhiteElo "2058"]
[BlackElo "1859"]
[Annotator "NA"]
[PlyCount "80"]
[EventDate "2018.10.20"]
[EventType "swiss"]
[EventCountry "GRE"]
[SourceTitle "playchess.com"]
[Source "ChessBase"]
[SourceQuality "1"]
[TimeControl "40/5400+30:1800+30"]

1. d4 {[%emt 0:00:00]} Nf6 {[%emt 0:00:00]} 2. c4 {[%emt 0:00:00]} c5 {[%emt 0:00:00]} 3. d5 {[%emt 0:00:00]} b5 {[%emt 0:00:00]} 4. Qc2 {[%emt 0:00:00]} bxc4 {[%emt 0:00:08]} 5. e4 {[%emt 0:00:08]} d6 {[%emt 0:00:11]} 6. Bxc4 {[%emt 0:02:10]} g6 {[%emt 0:00:17]} 7. Nf3 {[%emt 0:00:37]} Bg7 {[%emt 0:00:18]} 8. O-O {[%emt 0:00:35]} O-O {[%emt 0:00:15]} 9. h3 {[%emt 0:01:11]} Nbd7 {[%emt 0:00:28]} 10. Nc3 {[%emt 0:01:28]} Ne8 {[%emt 0:02:59] A57: Benko/Volga Gambit} (10... Rb8 11. Re1 Nh5 12. Be2 Ne5 13. Nxe5 Bxe5 14. Bxh5 gxh5 15. Bh6 Re8 16. Qd2 Kh8 17. Bf4 Bd4 18. Be3 {0-1 (63) Dreev,A (2644)-Perunovic,M (2622) Berlin 2015}) 11. Be3 {[%emt 0:04:07]} Nc7 {[%emt 0:01:38]} 12. Rab1 $146 {[%emt 0:03:58]} ({Predecessor:} 12. Rad1 Nb6 13. b3 Rb8 14. Qd2 Nxc4 15. bxc4 Rb4 {0-1 (33) Retallick,L (2115)-Pym,T (2050) Telford 2005}) 12... Nb6 {[%emt 0:01:47]} 13. Be2 {[%emt 0:00:22]} f5 {[%emt 0:13:27]} 14. e5 {[%emt 0:03:51]} f4 {[%emt 0:02:37]} 15. exd6 {[%emt 0:00:54]} exd6 {[%emt 0:01:36]} 16. Bc1 {[%emt 0:09:22]} Bxc3 {[%emt 0:18:43]} 17. bxc3 {[%emt 0:05:39]} Bf5 {[%emt 0:00:29]} 18. Bd3 {[%emt 0:00:37]} Bxd3 {[%emt 0:00:43]} 19. Qxd3 {[%emt 0:00:04]} c4 {[%emt 0:01:00]} 20. Qd2 {[%emt 0:10:45]} Qf6 $11 {[%emt 0:05:27]} 21. Nd4 {[%emt 0:16:24]} Rae8 {[%emt 0:17:23]} 22. Ba3 {[%emt 0:03:29]} Re5 {[%emt 0:04:32]} 23. Rfe1 {[%emt 0:05:56]} Rfe8 {[%emt 0:01:20]} 24. Rxe5 {[%emt 0:19:05]} Qxe5 {[%emt 0:16:47]} 25. Nb5 {[%emt 0:02:52]} Qxd5 {[%emt 0:02:24]} 26. Qxd5+ {[%emt 0:01:22]} Ncxd5 {[%emt 0:00:04]} 27. Nxd6 {[%emt 0:04:51]} Nxc3 {[%emt 0:02:51]} 28. Rb2 {[%emt 0:02:44]} Re1+ {[%emt 0:00:30]} 29. Kh2 {[%emt 0:00:09]} Re2 {[%emt 0:01:47]} 30. Rxb6 {[%emt 0:01:48]} axb6 {[%emt 0:00:11]} 31. Nxc4 {[%emt 0:00:02]} Nd5 {[%emt 0:01:21]} 32. Kg1 {[%emt 0:00:58]} Rxa2 {[%emt 0:00:39]} 33. Bd6 {[%emt 0:00:30]} b5 {[%emt 0:00:24]} 34. Ne5 {[%emt 0:00:30]} b4 {[%emt 0:00:17]} 35. Nd3 {[%emt 0:00:29]} b3 {[%emt 0:00:34]} 36. Be5 {[%emt 0:00:31]} Rc2 {[%emt 0:01:09]} 37. Kf1 {[%emt 0:00:29]} Nb6 {[%emt 0:01:20]} 38. Ke1 {[%emt 0:00:31]} Nc4 {[%emt 0:00:11]} 39. Bxf4 {[%emt 0:00:31]} b2 {[%emt 0:00:11]} 40. Nxb2 {[%emt 0:00:00]} Rxb2 {[%emt 0:00:00]} 0-1

[Event "WYCC 2018 G18"]
[Site "Halkidiki"]
[Date "2018.10.22"]
[Round "4"]
[White "Avetisyan, Mariam"]
[Black "Nistor, Valentina"]
[Result "0-1"]
[ECO "D37"]
[WhiteElo "2049"]
[BlackElo "1881"]
[Annotator "NA"]
[PlyCount "84"]
[EventDate "2018.10.20"]
[EventType "swiss"]
[EventCountry "GRE"]
[SourceTitle "playchess.com"]
[Source "ChessBase"]
[SourceQuality "1"]
[TimeControl "40/5400+30:1800+30"]

1. d4 {[%emt 0:00:00]} d5 {[%emt 0:00:00]} 2. c4 {[%emt 0:00:00]} e6 {[%emt 0:00:00]} 3. Nc3 {[%emt 0:00:00]} Nf6 {[%emt 0:00:00]} 4. Nf3 {[%emt 0:00:00]} a6 {[%emt 0:00:00]} 5. cxd5 {[%emt 0:14:44]} exd5 {[%emt 0:00:14]} 6. Bg5 {[%emt 0:01:06]} Be6 {[%emt 0:01:16]} 7. e3 {[%emt 0:03:37]} Nbd7 {[%emt 0:04:18]} 8. Bd3 {[%emt 0:03:36]} c6 $14 {[%emt 0:06:18]} 9. h3 {[%emt 0:01:20]} Bd6 {[%emt 0:02:17] LiveBook: 11 Games} 10. O-O {[%emt 0:07:53]} O-O {[%emt 0:01:16]} 11. Rb1 {[%emt 0:09:38]} h6 {[%emt 0:05:03]} 12. Bf4 {[%emt 0:06:39]} Qc7 {[%emt 0:03:02]} 13. Bxd6 {[%emt 0:05:21]} Qxd6 {[%emt 0:00:08]} 14. b4 {[%emt 0:00:18]} b5 {[%emt 0:08:43]} 15. a4 {[%emt 0:15:00]} Nb6 {[%emt 0:05:24]} 16. Qb3 {[%emt 0:08:22]} Nc4 {[%emt 0:03:30]} 17. axb5 {[%emt 0:02:10]} cxb5 {[%emt 0:03:52]} 18. Ra1 {[%emt 0:05:34]} Rac8 {[%emt 0:05:15]} 19. Rfc1 {[%emt 0:02:26]} Rc6 {[%emt 0:02:05]} 20. Rc2 {[%emt 0:07:33]} Rfc8 {[%emt 0:01:57]} 21. Rac1 {[%emt 0:01:17]} Qc7 {[%emt 0:07:45]} 22. Ne1 {[%emt 0:00:51]} Qd7 {[%emt 0:06:10]} 23. Kh2 {[%emt 0:01:59]} Bf5 {[%emt 0:02:53]} 24. Nd1 {[%emt 0:01:11]} Ne4 {[%emt 0:03:09]} 25. f3 {[%emt 0:00:46]} Qd6+ {[%emt 0:10:47]} 26. Kg1 {[%emt 0:00:18]} Ng3 {[%emt 0:00:18]} 27. Bxf5 {[%emt 0:00:50]} Nxf5 {[%emt 0:00:04]} 28. Qd3 {[%emt 0:00:34]} Qf6 {[%emt 0:01:00]} 29. f4 {[%emt 0:00:36]} Re8 {[%emt 0:02:17]} 30. Re2 {[%emt 0:00:36]} Rce6 {[%emt 0:02:09]} 31. Nc2 {[%emt 0:00:13]} Ng3 {[%emt 0:00:59]} 32. Re1 {[%emt 0:00:38]} Ne4 {[%emt 0:01:35]} 33. Na1 {[%emt 0:00:28]} Qh4 {[%emt 0:00:54]} 34. Re2 {[%emt 0:00:35]} Rg6 {[%emt 0:01:20]} 35. Kh2 {[%emt 0:00:25]} Rg3 {[%emt 0:06:30]} 36. Nc2 {[%emt 0:00:34]} Re6 {[%emt 0:02:41]} 37. f5 {[%emt 0:00:30]} Rf6 {[%emt 0:00:50]} 38. Nf2 {[%emt 0:00:45]} Nxf2 {[%emt 0:00:48]} 39. Rxf2 {[%emt 0:00:09]} Rxh3+ {[%emt 0:00:22]} 40. gxh3 {[%emt 0:00:00]} Qxf2+ {[%emt 0:00:00]} 41. Kh1 {[%emt 0:00:06]} Rxf5 {[%emt 0:00:53]} 42. Qd1 {[%emt 0:03:06]} Rf3 {[%emt 0:00:35]} 0-1

[Event "WYCC 2018 G18"]
[Site "Halkidiki"]
[Date "2018.10.22"]
[Round "4"]
[White "Tarini Goyal"]
[Black "Martynkova, Olena"]
[Result "1-0"]
[ECO "E67"]
[WhiteElo "2026"]
[BlackElo "2188"]
[Annotator "NA"]
[PlyCount "109"]
[EventDate "2018.10.20"]
[EventType "swiss"]
[EventCountry "GRE"]
[SourceTitle "playchess.com"]
[Source "ChessBase"]
[SourceQuality "1"]
[TimeControl "40/5400+30:1800+30"]

1. d4 {[%emt 0:00:00]} Nf6 {[%emt 0:00:00]} 2. c4 {[%emt 0:00:09]} g6 {[%emt 0:00:08]} 3. Nf3 {[%emt 0:00:53]} Bg7 {[%emt 0:00:38]} 4. g3 {[%emt 0:00:41]} O-O {[%emt 0:00:40]} 5. Bg2 {[%emt 0:00:06]} d6 {[%emt 0:00:34]} 6. Nc3 {[%emt 0:01:14]} Nbd7 {[%emt 0:00:57]} 7. O-O {[%emt 0:00:15]} e5 {[%emt 0:00:41]} 8. h3 {[%emt 0:00:41]} exd4 {[%emt 0:01:18]} 9. Nxd4 {[%emt 0:00:15]} Re8 {[%emt 0:00:36]} 10. e4 {[%emt 0:02:06]} Nc5 {[%emt 0:01:45]} 11. Re1 {[%emt 0:00:58]} Bd7 {[%emt 0:01:24]} 12. b4 {[%emt 0:11:40]} Ne6 {[%emt 0:06:56] E68: King's Indian: Fianchetto: 6...Nbd7 7 0-0 e5 8 e4} 13. Nde2 {[%emt 0:09:54]} (13. Be3 Qc8 14. Nde2 h6 15. f4 a5 16. a3 axb4 17. axb4 Rxa1 18. Qxa1 c6 19. Qd1 Qc7 20. Bf2 {½-½ (65) Ushenina,A (2416)-Harika,D (2504) Huaian 2017}) 13... a5 {[%emt 0:09:13]} 14. b5 $146 {[%emt 0:13:03]} ({Predecessor:} 14. Rb1 axb4 15. Rxb4 Nc5 16. Qc2 Qc8 17. Kh2 Ra5 18. Nf4 c6 19. f3 Na6 20. Rb6 {0-1 (92) Rottenwohrer Suarez,J (2227)-Alonso Bouza,J (2391) Mondariz 2018}) 14... Nc5 {[%emt 0:06:11]} 15. Nd4 {[%emt 0:00:43]} Qc8 {[%emt 0:00:35]} 16. Kh2 {[%emt 0:01:21]} Re5 {[%emt 0:10:27]} 17. f4 {[%emt 0:12:39]} Rh5 {[%emt 0:05:20]} 18. f5 {[%emt 0:03:29]} Ng4+ {[%emt 0:19:40]} 19. Kg1 {[%emt 0:12:58]} Ne5 {[%emt 0:01:21]} 20. g4 {[%emt 0:04:45]} Ned3 $16 {[%emt 0:02:16]} 21. Be3 {[%emt 0:04:54]} Nxe1 {[%emt 0:07:56]} 22. Qxe1 {[%emt 0:00:10]} Rh6 {[%emt 0:01:30]} 23. Qd2 {[%emt 0:02:46]} Qf8 {[%emt 0:03:51]} 24. Bxh6 {[%emt 0:04:23]} Bxh6 {[%emt 0:11:27]} 25. g5 {[%emt 0:00:18]} Bg7 {[%emt 0:00:03]} 26. f6 {[%emt 0:00:08]} Bh8 {[%emt 0:00:02]} 27. Nd5 {[%emt 0:00:38]} Re8 {[%emt 0:02:23]} 28. Nxc7 {[%emt 0:05:34]} Re5 {[%emt 0:04:25]} 29. Nd5 {[%emt 0:00:12]} h6 {[%emt 0:00:11]} 30. h4 {[%emt 0:07:20]} Nxe4 {[%emt 0:00:13]} 31. Qc2 {[%emt 0:00:25]} Ng3 {[%emt 0:00:53]} 32. Qf2 {[%emt 0:00:29]} Ne4 {[%emt 0:01:33]} 33. Qc2 {[%emt 0:00:27]} Ng3 {[%emt 0:00:35]} 34. Qf2 {[%emt 0:00:42]} Ne4 {[%emt 0:00:02]} 35. Qc2 {[%emt 0:00:30]} Nc5 {[%emt 0:01:13]} 36. Nf3 {[%emt 0:00:27]} Bf5 {[%emt 0:00:25]} 37. Qd2 {[%emt 0:00:12]} Re4 {[%emt 0:00:34]} 38. gxh6 {[%emt 0:00:43]} Ne6 {[%emt 0:00:28]} 39. Ng5 {[%emt 0:00:42]} Nxg5 {[%emt 0:00:32]} 40. hxg5 {[%emt 0:00:00]} Rxc4 {[%emt 0:00:00]} 41. Qe2 {[%emt 0:15:54]} Rc2 {[%emt 0:08:28]} 42. Qe7 {[%emt 0:03:35]} Qxe7 {[%emt 0:01:50]} 43. Nxe7+ {[%emt 0:04:57]} Kh7 {[%emt 0:04:14]} 44. Bxb7 {[%emt 0:02:21]} Be6 {[%emt 0:09:08]} 45. Bg2 {[%emt 0:00:49]} a4 {[%emt 0:01:22]} 46. b6 {[%emt 0:02:36]} Rb2 {[%emt 0:00:19]} 47. b7 {[%emt 0:00:10]} d5 {[%emt 0:00:27]} 48. Nxd5 {[%emt 0:02:58]} Rxb7 {[%emt 0:00:11]} 49. Nf4 {[%emt 0:00:08]} Rb6 {[%emt 0:00:52]} 50. Nxe6 {[%emt 0:00:42]} Rxe6 {[%emt 0:00:07]} 51. Rd1 {[%emt 0:00:16]} Re5 {[%emt 0:01:27]} 52. Rd5 {[%emt 0:00:21]} Rf5 {[%emt 0:04:40]} 53. a3 {[%emt 0:01:33]} Bxf6 {[%emt 0:01:39]} 54. Rxf5 {[%emt 0:00:27]} Bd4+ {[%emt 0:00:47]} 55. Rf2 {[%emt 0:00:06]} 1-0

[Event "WYCC 2018 G18"]
[Site "Halkidiki"]
[Date "2018.10.22"]
[Round "4"]
[White "Greibrokk, Ingrid"]
[Black "Yurdakul, Didem Nuray"]
[Result "0-1"]
[ECO "B75"]
[WhiteElo "2018"]
[BlackElo "1604"]
[Annotator "NA"]
[PlyCount "100"]
[EventDate "2018.10.20"]
[EventType "swiss"]
[EventCountry "GRE"]
[SourceTitle "playchess.com"]
[Source "ChessBase"]
[SourceQuality "1"]
[TimeControl "40/5400+30:1800+30"]

1. e4 {[%emt 0:00:00]} c5 {[%emt 0:00:00]} 2. Nf3 {[%emt 0:00:00]} d6 {[%emt 0:00:00]} 3. d4 {[%emt 0:00:00]} cxd4 {[%emt 0:00:01]} 4. Nxd4 {[%emt 0:00:00]} Nf6 {[%emt 0:00:14]} 5. Nc3 {[%emt 0:00:00]} g6 {[%emt 0:00:34]} 6. Be3 {[%emt 0:00:19]} Bg7 {[%emt 0:00:14]} 7. f3 {[%emt 0:00:05]} a6 {[%emt 0:01:04]} 8. Qd2 {[%emt 0:00:29]} h5 {[%emt 0:01:12]} 9. O-O-O {[%emt 0:02:06]} b5 {[%emt 0:01:17]} 10. h3 {[%emt 0:14:32]} Bb7 {[%emt 0:01:43]} 11. Bd3 {[%emt 0:03:20]} Nbd7 {[%emt 0:05:17]} 12. g4 {[%emt 0:00:21]} Nc5 {[%emt 0:00:30]} 13. Nb3 {[%emt 0:00:41]} Qc7 {[%emt 0:14:06]} 14. Kb1 {[%emt 0:03:25]} Rc8 {[%emt 0:05:41]} 15. g5 {[%emt 0:30:10]} Nfd7 {[%emt 0:00:21]} 16. Nd5 {[%emt 0:03:18]} Bxd5 {[%emt 0:02:38]} 17. exd5 {[%emt 0:00:08]} O-O {[%emt 0:08:46]} 18. f4 {[%emt 0:04:40]} Nxd3 {[%emt 0:18:06]} 19. Qxd3 {[%emt 0:03:03]} Nb6 {[%emt 0:00:20]} 20. Bd4 {[%emt 0:10:12]} Bxd4 {[%emt 0:01:57]} 21. Nxd4 Kh7 {[%emt 0:17:44]} 22. f5 {[%emt 0:02:58]} Qc4 {[%emt 0:02:15]} 23. fxg6+ {[%emt 0:01:17]} fxg6 {[%emt 0:00:04]} 24. Rhe1 {[%emt 0:15:33]} Rf7 {[%emt 0:10:26]} 25. Nb3 {[%emt 0:04:21]} Qxd3 {[%emt 0:02:08]} 26. Rxd3 {[%emt 0:00:00]} Rc4 {[%emt 0:00:01]} 27. Na5 {[%emt 0:00:58]} Rc5 {[%emt 0:00:26]} 28. Red1 {[%emt 0:00:51]} Rxd5 {[%emt 0:00:29]} 29. Rxd5 {[%emt 0:00:33]} Nxd5 {[%emt 0:00:05]} 30. a4 {[%emt 0:00:44]} Rf5 {[%emt 0:01:18]} 31. axb5 {[%emt 0:00:32]} axb5 {[%emt 0:00:02]} 32. h4 {[%emt 0:00:17]} Kg7 {[%emt 0:00:13]} 33. Nc6 Kf7 {[%emt 0:03:49]} 34. Nd4 {[%emt 0:00:22]} Rf4 {[%emt 0:00:07]} 35. Nxb5 {[%emt 0:00:46]} Ne3 {[%emt 0:00:12]} 36. Re1 {[%emt 0:00:51]} Nf5 {[%emt 0:00:22]} 37. Nc3 {[%emt 0:00:38]} Rxh4 {[%emt 0:00:08]} 38. Ne4 {[%emt 0:00:42]} Rg4 {[%emt 0:01:45]} 39. c4 {[%emt 0:00:32]} Ng3 {[%emt 0:00:11]} 40. Nxg3 {[%emt 0:00:00]} Rxg3 {[%emt 0:00:00]} 41. Kc2 {[%emt 0:00:50]} Rxg5 {[%emt 0:00:13]} 42. b4 {[%emt 0:00:09]} h4 {[%emt 0:01:19]} 43. b5 {[%emt 0:01:02]} Rh5 {[%emt 0:00:18]} 44. Kc3 {[%emt 0:01:39]} h3 {[%emt 0:01:12]} 45. b6 {[%emt 0:00:50]} Rh8 {[%emt 0:00:06]} 46. Kb4 {[%emt 0:00:05]} h2 {[%emt 0:02:35]} 47. Rh1 {[%emt 0:00:59]} g5 {[%emt 0:02:48]} 48. Ka5 {[%emt 0:00:30]} g4 {[%emt 0:00:06]} 49. b7 {[%emt 0:00:21]} g3 {[%emt 0:00:06]} 50. Rb1 {[%emt 0:01:09]} g2 {[%emt 0:00:15]} 0-1

[Event "WYCC 2018 G18"]
[Site "Halkidiki"]
[Date "2018.10.22"]
[Round "4"]
[White "Du, Yuxin"]
[Black "Mocanu, Valeria"]
[Result "1-0"]
[ECO "C54"]
[WhiteElo "2011"]
[BlackElo "1800"]
[Annotator "NA"]
[PlyCount "105"]
[EventDate "2018.10.20"]
[EventType "swiss"]
[EventCountry "GRE"]
[SourceTitle "playchess.com"]
[Source "ChessBase"]
[SourceQuality "1"]
[TimeControl "40/5400+30:1800+30"]

1. e4 {[%emt 0:00:00]} e5 {[%emt 0:00:00]} 2. Nf3 {[%emt 0:00:00]} Nc6 {[%emt 0:00:00]} 3. Bc4 {[%emt 0:00:00]} Bc5 {[%emt 0:00:00]} 4. c3 {[%emt 0:00:00]} Nf6 {[%emt 0:00:00]} 5. d4 {[%emt 0:00:06]} exd4 {[%emt 0:00:04]} 6. e5 {[%emt 0:00:06]} d5 {[%emt 0:00:12]} 7. Bb5 {[%emt 0:00:06]} Ne4 {[%emt 0:00:21]} 8. cxd4 {[%emt 0:00:08]} Bb6 {[%emt 0:00:05]} 9. Nc3 {[%emt 0:01:17]} O-O {[%emt 0:00:35]} 10. Be3 {[%emt 0:01:53]} Bg4 {[%emt 0:01:09]} 11. h3 {[%emt 0:01:54]} Bh5 {[%emt 0:02:40]} 12. Qc2 {[%emt 0:01:34]} Bxf3 {[%emt 0:03:07]} 13. gxf3 {[%emt 0:01:20]} Ng5 {[%emt 0:00:13]} 14. Bxc6 {[%emt 0:13:23]} bxc6 {[%emt 0:05:16]} 15. Qf5 {[%emt 0:03:02]} Ne6 {[%emt 0:09:10]} 16. O-O-O {[%emt 0:00:13]} Qh4 {[%emt 0:08:42]} 17. f4 {[%emt 0:41:38]} g6 {[%emt 0:26:36]} 18. Rhg1 Kh8 {[%emt 0:04:47]} 19. Qg4 {[%emt 0:02:26]} Qxg4 {[%emt 0:00:55]} 20. Rxg4 {[%emt 0:02:31]} Rfd8 {[%emt 0:07:36]} 21. Rg3 {[%emt 0:07:00]} Ng7 {[%emt 0:06:52]} 22. Rgg1 {[%emt 0:02:56]} Nf5 {[%emt 0:00:36]} 23. Na4 {[%emt 0:01:23]} a6 {[%emt 0:04:59]} 24. Rd3 {[%emt 0:02:44]} Rab8 {[%emt 0:09:36]} 25. a3 {[%emt 0:00:58]} Ba7 {[%emt 0:02:21]} 26. Rgd1 {[%emt 0:00:39]} Rb5 {[%emt 0:01:08]} 27. Rc3 {[%emt 0:02:30]} Ne7 {[%emt 0:01:19]} 28. f5 {[%emt 0:05:36]} c5 {[%emt 0:03:58]} 29. Bg5 {[%emt 0:03:50]} Re8 {[%emt 0:00:25]} 30. fxg6 {[%emt 0:03:26]} hxg6 {[%emt 0:01:42]} 31. Nxc5 {[%emt 0:00:26]} Bxc5 {[%emt 0:00:06]} 32. Rxc5 {[%emt 0:00:40]} Rxc5+ {[%emt 0:00:04]} 33. dxc5 {[%emt 0:00:05]} c6 {[%emt 0:00:03]} 34. Rd4 {[%emt 0:01:19]} Ng8 {[%emt 0:01:24]} 35. f4 {[%emt 0:00:51]} Rb8 {[%emt 0:00:21]} 36. Ra4 {[%emt 0:00:37]} Ra8 {[%emt 0:01:02]} 37. Rb4 {[%emt 0:00:11]} Kg7 {[%emt 0:00:27]} 38. Rb6 {[%emt 0:00:11]} Rc8 {[%emt 0:00:15]} 39. Rxa6 {[%emt 0:00:06]} Rc7 {[%emt 0:00:47]} 40. b4 {[%emt 0:00:00]} f6 {[%emt 0:00:00]} 41. exf6+ {[%emt 0:00:28]} Nxf6 {[%emt 0:00:33]} 42. Bxf6+ {[%emt 0:00:47]} Kxf6 {[%emt 0:00:04]} 43. b5 {[%emt 0:00:09]} Kf5 {[%emt 0:03:10]} 44. Rxc6 {[%emt 0:00:08]} Re7 {[%emt 0:00:35]} 45. b6 {[%emt 0:00:28]} Re1+ {[%emt 0:00:51]} 46. Kd2 {[%emt 0:00:09]} Rb1 {[%emt 0:00:27]} 47. Kc2 {[%emt 0:01:48]} Rb5 {[%emt 0:00:47]} 48. a4 {[%emt 0:00:07]} Rb4 {[%emt 0:00:13]} 49. a5 {[%emt 0:00:11]} Kxf4 {[%emt 0:01:11]} 50. a6 {[%emt 0:00:50]} Ke3 {[%emt 0:00:21]} 51. a7 {[%emt 0:00:14]} d4 {[%emt 0:00:30]} 52. a8=Q {[%emt 0:00:17]} d3+ {[%emt 0:00:31]} 53. Kc3 {[%emt 0:00:07]} 1-0

[Event "WYCC 2018 G18"]
[Site "Halkidiki"]
[Date "2018.10.22"]
[Round "4"]
[White "Priyanka, Kumari"]
[Black "Rozman, Monika"]
[Result "1/2-1/2"]
[ECO "B90"]
[WhiteElo "2005"]
[BlackElo "2141"]
[Annotator "NA"]
[PlyCount "109"]
[EventDate "2018.10.20"]
[EventType "swiss"]
[EventCountry "GRE"]
[SourceTitle "playchess.com"]
[Source "ChessBase"]
[SourceQuality "1"]
[TimeControl "40/5400+30:1800+30"]

1. e4 {[%emt 0:00:02]} c5 {[%emt 0:00:00]} 2. Nf3 {[%emt 0:00:08]} d6 {[%emt 0:00:00]} 3. d4 {[%emt 0:00:06]} cxd4 {[%emt 0:00:00]} 4. Nxd4 {[%emt 0:00:07]} Nf6 {[%emt 0:00:00]} 5. Nc3 {[%emt 0:00:10]} a6 {[%emt 0:00:03]} 6. Bd3 {[%emt 0:00:16]} e5 {[%emt 0:02:18]} 7. Nde2 {[%emt 0:00:14]} Be7 {[%emt 0:00:56]} 8. O-O {[%emt 0:00:17]} Nbd7 {[%emt 0:02:27]} 9. Ng3 {[%emt 0:06:04]} Nc5 {[%emt 0:04:53]} 10. Nd5 {[%emt 0:06:19]} Nxd5 {[%emt 0:07:56]} 11. exd5 $15 {[%emt 0:02:36]} Nxd3 {[%emt 0:02:54]} 12. Qxd3 {[%emt 0:00:43]} O-O {[%emt 0:00:28]} 13. c4 {[%emt 0:07:31]} b5 {[%emt 0:08:42]} 14. cxb5 {[%emt 0:12:06]} axb5 {[%emt 0:00:19]} 15. Qxb5 {[%emt 0:01:34]} Ba6 {[%emt 0:01:53]} 16. Qc6 {[%emt 0:05:16]} Bxf1 {[%emt 0:05:52]} 17. Nxf1 {[%emt 0:01:02]} Qb8 {[%emt 0:08:35]} 18. Qc2 {[%emt 0:08:30]} Rc8 {[%emt 0:03:53]} 19. Qd1 {[%emt 0:02:06]} Ra5 {[%emt 0:09:46]} 20. a4 {[%emt 0:14:06]} Qa8 {[%emt 0:08:03]} 21. Ne3 {[%emt 0:01:17]} Bg5 {[%emt 0:01:50]} 22. b4 {[%emt 0:06:19]} Bxe3 {[%emt 0:02:12]} 23. Bxe3 {[%emt 0:02:35]} Rxd5 {[%emt 0:01:38]} 24. Qb3 {[%emt 0:00:58]} Rb8 {[%emt 0:08:24]} 25. Ba7 {[%emt 0:10:47]} Rxb4 {[%emt 0:09:54]} 26. Qxb4 {[%emt 0:00:14]} Qxa7 {[%emt 0:00:19]} 27. a5 {[%emt 0:00:34]} g6 {[%emt 0:00:48]} 28. h3 {[%emt 0:01:59]} Rd4 {[%emt 0:01:17]} 29. Qb5 {[%emt 0:05:06]} Rd2 {[%emt 0:01:33]} 30. Qf1 {[%emt 0:00:24]} Qd4 {[%emt 0:01:31]} 31. a6 {[%emt 0:03:28]} Rxf2 {[%emt 0:01:54]} 32. Qxf2 {[%emt 0:00:12]} Qxa1+ {[%emt 0:00:04]} 33. Qf1 {[%emt 0:00:03]} Qa4 {[%emt 0:01:15]} 34. Qd3 {[%emt 0:00:27]} d5 {[%emt 0:03:36]} 35. Qxd5 {[%emt 0:00:12]} Qxa6 {[%emt 0:00:14]} 36. Qxe5 {[%emt 0:00:14]} Qe6 {[%emt 0:00:22]} 37. Qd4 {[%emt 0:00:22]} f6 {[%emt 0:00:53]} 38. Qa7 {[%emt 0:00:41]} Qf7 {[%emt 0:00:31]} 39. Qd4 {[%emt 0:00:10]} Qe7 {[%emt 0:00:17]} 40. Qc4+ {[%emt 0:00:00]} Kg7 {[%emt 0:00:00]} 41. Kf2 {[%emt 0:01:38]} Qa7+ {[%emt 0:05:02]} 42. Kg3 {[%emt 0:01:00]} Qe3+ {[%emt 0:01:14]} 43. Kh2 {[%emt 0:00:10]} Qe5+ {[%emt 0:02:06]} 44. Kh1 {[%emt 0:00:22]} g5 {[%emt 0:01:02]} 45. Qg4 {[%emt 0:01:49]} Kg6 {[%emt 0:04:20]} 46. Qc8 {[%emt 0:00:32]} Qd5 {[%emt 0:01:50]} 47. Qe8+ {[%emt 0:00:44]} Qf7 {[%emt 0:02:16]} 48. Qe4+ {[%emt 0:01:27]} f5 {[%emt 0:00:46]} 49. Qc6+ {[%emt 0:00:18]} Qf6 {[%emt 0:00:14]} 50. Qe8+ {[%emt 0:00:41]} Kh6 {[%emt 0:00:47]} 51. Qe3 {[%emt 0:01:28]} Kg7 {[%emt 0:01:05]} 52. Qe2 {[%emt 0:00:51]} Kh6 {[%emt 0:04:36]} 53. Qe3 {[%emt 0:00:07]} Qd6 {[%emt 0:02:08]} 54. Qe2 {[%emt 0:01:50]} Qf6 {[%emt 0:02:22]} 55. Qe3 {[%emt 0:00:13]} 1/2-1/2